[Event "Summer Prague Open-A 2024"]
[Site "Prague"]
[Date "2024.08.03"]
[Round "2.26"]
[White "Kotal, Vaclav"]
[Black "Steiner, Juraj"]
[Result "1/2-1/2"]
[Annotator "RC"]
[ECO "B24"]
[WhiteElo "2151"]
[BlackElo "1959"]
[PlyCount "83"]
[EventDate "2024.08.02"]
[EventType "swiss"]
[EventCountry "CZE"]
[SourceTitle "playchess.com"]
[Source "ChessBase"]
[SourceQuality "1"]
[TimeControl "40/5400+30:1800+30"]

1. e4 {[%emt 0:00:04]} c5 {[%emt 0:00:22]} 2. Nc3 {[%emt 0:00:11]} Nc6 {[%emt 0:00:09]} 3. Bb5 {[%emt 0:00:19]} Nd4 {[%emt 0:04:22]} 4. Nf3 {[%emt 0:00:28]} Nxb5 {[%emt 0:01:29]} 5. Nxb5 {[%emt 0:00:07]} d6 {[%emt 0:00:48]} 6. d4 {[%emt 0:00:54]} Qa5+ {[%emt 0:04:07]} 7. Nc3 {[%emt 0:00:27]} Bg4 {[%emt 0:00:17]} 8. dxc5 {[%emt 0:09:47]} Qxc5 {[%emt 0:10:17]} 9. Be3 {[%emt 0:06:33]} Qc4 {[%emt 0:03:09]} 10. h3 {[%emt 0:01:50]} Bh5 {[%emt 0:01:39]} 11. g4 {[%emt 0:05:16]} Bg6 {[%emt 0:00:10]} 12. Nd2 {[%emt 0:02:40]} Qc6 {[%emt 0:00:43]} 13. f4 {[%emt 0:04:10]} f5 {[%emt 0:02:10]} 14. Rh2 {[%emt 0:07:26]} e6 {[%emt 0:03:35]} 15. exf5 {[%emt 0:02:37]} exf5 {[%emt 0:00:27]} 16. Qe2 {[%emt 0:04:52]} O-O-O {[%emt 0:01:01]} 17. O-O-O {[%emt 0:01:34]} d5 {[%emt 0:06:55]} 18. Nb3 {[%emt 0:05:49]} Nf6 {[%emt 0:01:33]} 19. Nb5 {[%emt 0:02:27]} Qc4 {[%emt 0:05:53]} 20. Nxa7+ {[%emt 0:01:36]} Kc7 {[%emt 0:00:18]} 21. Qxc4+ {[%emt 0:10:36]} dxc4 {[%emt 0:00:07]} 22. Nd4 {[%emt 0:00:13]} Re8 {[%emt 0:04:17]} 23. Ndb5+ {[%emt 0:03:22]} Kb8 {[%emt 0:03:12]} 24. Bb6 {[%emt 0:02:49]} fxg4 {[%emt 0:01:17]} 25. Nc7 {[%emt 0:03:43]} Bc5 {[%emt 0:00:39]} 26. Bxc5 {[%emt 0:06:22]} Kxc7 {[%emt 0:03:16]} 27. hxg4 {[%emt 0:03:48]} Nxg4 {[%emt 0:01:53]} 28. Rhd2 {[%emt 0:01:46]} Bf5 {[%emt 0:04:23]} 29. Rd6 {[%emt 0:06:55]} Kb8 {[%emt 0:14:55]} 30. Nb5 {[%emt 0:01:22]} Rc8 {[%emt 0:03:10]} 31. R1d5 {[%emt 0:01:43]} g6 {[%emt 0:05:59]} 32. Rb6 {[%emt 0:04:03]} Rc6 {[%emt 0:06:58]} 33. Bd6+ {[%emt 0:00:30]} Ka8 {[%emt 0:00:34]} 34. Nc7+ {[%emt 0:00:29]} Ka7 {[%emt 0:00:50]} 35. Rb4 {[%emt 0:00:38]} b6 {[%emt 0:01:38]} 36. Nb5+ {[%emt 0:00:29]} Kb7 {[%emt 0:00:19]} 37. Nd4 {[%emt 0:00:27]} Ne3 {[%emt 0:01:18]} 38. Nxc6 {[%emt 0:00:37]} Nxd5 {[%emt 0:00:16]} 39. Rxc4 {[%emt 0:00:25]} Ne3 {[%emt 0:01:06]} 40. Rc3 {[%emt 0:00:29]} Nd5 {[%emt 0:00:54]} 41. Rc4 {[%emt 0:02:42]} Ne3 {[%emt 0:00:18]} 42. Rc3 1/2-1/2

[Event "Summer Prague Open-A 2024"]
[Site "Prague"]
[Date "2024.08.03"]
[Round "2.27"]
[White "Korenova, Martina"]
[Black "Sramek, Ondrej"]
[Result "1-0"]
[Annotator "ChessBase"]
[ECO "A57"]
[WhiteElo "2145"]
[BlackElo "1956"]
[PlyCount "51"]
[EventDate "2024.08.02"]
[EventType "swiss"]
[EventCountry "CZE"]
[SourceTitle "playchess.com"]
[Source "ChessBase"]
[SourceQuality "1"]
[TimeControl "40/5400+30:1800+30"]

1. d4 {[%emt 0:00:05]} Nf6 {[%emt 0:00:10]} 2. c4 {[%emt 0:00:15]} c5 {[%emt 0:00:06]} 3. d5 {[%emt 0:00:22]} b5 {[%emt 0:00:07]} 4. cxb5 {[%emt 0:00:28]} a6 {[%emt 0:00:08]} 5. Nc3 {[%emt 0:00:25]} Bb7 {[%emt 0:00:54]} 6. e4 {[%emt 0:01:08]} axb5 {[%emt 0:07:12]} 7. Bxb5 {[%emt 0:05:51]} Qa5 {[%emt 0:01:25]} 8. f3 {[%emt 0:00:44]} e6 {[%emt 0:14:07]} 9. dxe6 {[%emt 0:10:00]} fxe6 {[%emt 0:00:48]} 10. Nge2 {[%emt 0:00:15]} Be7 {[%emt 0:02:01]} 11. O-O {[%emt 0:04:38]} O-O {[%emt 0:00:26]} 12. e5 {[%emt 0:10:37]} Nd5 {[%emt 0:05:50]} 13. Nxd5 {[%emt 0:01:10]} exd5 {[%emt 0:03:07]} 14. a4 {[%emt 0:03:14]} Kh8 {[%emt 0:12:44]} 15. Nf4 {[%emt 0:05:40]} d4 {[%emt 0:06:43]} 16. Qe2 {[%emt 0:03:04]} d5 {[%emt 0:04:41]} 17. Bd2 {[%emt 0:12:17]} Qa7 {[%emt 0:10:49]} 18. Ne6 {[%emt 0:00:20]} c4 {[%emt 0:04:02]} 19. Kh1 {[%emt 0:01:37]} Rc8 {[%emt 0:04:12]} 20. f4 {[%emt 0:04:36]} Nc6 {[%emt 0:12:47]} 21. f5 {[%emt 0:05:44]} Nd8 {[%emt 0:03:32]} 22. Nxg7 Kxg7 23. f6+ {[%emt 0:02:29]} Kh8 {[%emt 0:02:28]} 24. fxe7 {[%emt 0:01:44]} Nc6 {[%emt 0:01:11]} 25. Rf7 {[%emt 0:00:34]} Rg8 {[%emt 0:01:19]} 26. Rxh7+ {[%emt 0:00:23]} 1-0

[Event "Summer Prague Open-A 2024"]
[Site "Prague"]
[Date "2024.08.03"]
[Round "2.28"]
[White "Starcevic, Danijel"]
[Black "Persson, Andreas"]
[Result "0-1"]
[Annotator "RC"]
[ECO "E04"]
[WhiteElo "1957"]
[BlackElo "2139"]
[PlyCount "110"]
[EventDate "2024.08.02"]
[EventType "swiss"]
[EventCountry "CZE"]
[SourceTitle "playchess.com"]
[Source "ChessBase"]
[SourceQuality "1"]
[TimeControl "40/5400+30:1800+30"]

1. d4 {[%emt 0:00:03]} d5 {[%emt 0:00:15]} 2. c4 {[%emt 0:00:07]} e6 {[%emt 0:00:20]} 3. Nf3 {[%emt 0:00:27]} Nf6 {[%emt 0:00:33]} 4. g3 {[%emt 0:00:10]} dxc4 {[%emt 0:00:51]} 5. Bg2 {[%emt 0:02:04]} c5 {[%emt 0:00:33]} 6. O-O {[%emt 0:01:19]} Nc6 {[%emt 0:01:04]} 7. dxc5 {[%emt 0:03:45]} Qxd1 {[%emt 0:00:21]} 8. Rxd1 {[%emt 0:00:07]} Bxc5 {[%emt 0:00:05]} 9. Nbd2 {[%emt 0:01:36]} c3 {[%emt 0:00:23]} 10. bxc3 {[%emt 0:09:22]} Bd7 {[%emt 0:00:59]} 11. Nb3 {[%emt 0:00:46]} Be7 {[%emt 0:00:31]} 12. Nfd4 {[%emt 0:02:43]} Rc8 {[%emt 0:06:45]} 13. Bg5 {[%emt 0:03:51]} Nd8 {[%emt 0:12:32]} 14. Rac1 {[%emt 0:04:59]} Ba3 {[%emt 0:06:13]} 15. Rc2 {[%emt 0:09:55]} e5 {[%emt 0:02:21]} 16. Nf3 {[%emt 0:02:14]} Nc6 {[%emt 0:01:08]} 17. Ne1 {[%emt 0:06:22]} Bf5 {[%emt 0:04:46]} 18. Rcd2 {[%emt 0:04:42]} O-O {[%emt 0:06:32]} 19. Nc2 {[%emt 0:09:48]} Be7 {[%emt 0:02:08]} 20. Ne3 {[%emt 0:01:31]} Be6 {[%emt 0:01:45]} 21. Bxf6 {[%emt 0:03:10]} gxf6 {[%emt 0:00:35]} 22. Nd5 {[%emt 0:02:04]} b6 {[%emt 0:03:52]} 23. e4 {[%emt 0:02:11]} Kg7 {[%emt 0:05:53]} 24. Bf1 {[%emt 0:01:35]} Ba3 {[%emt 0:02:14]} 25. Ba6 {[%emt 0:01:39]} Rcd8 {[%emt 0:01:39]} 26. Nc7 {[%emt 0:06:33]} Bg4 {[%emt 0:04:43]} 27. Rxd8 {[%emt 0:02:17]} Rxd8 {[%emt 0:06:58]} 28. Rxd8 {[%emt 0:08:02]} Nxd8 {[%emt 0:00:04]} 29. Nb5 {[%emt 0:01:07]} Be2 {[%emt 0:03:22]} 30. Nxa3 {[%emt 0:01:39]} Bxa6 {[%emt 0:00:07]} 31. f3 {[%emt 0:00:41]} Ne6 {[%emt 0:00:29]} 32. Kf2 Kg6 {[%emt 0:00:52]} 33. c4 {[%emt 0:03:29]} f5 {[%emt 0:01:14]} 34. exf5+ {[%emt 0:02:26]} Kxf5 {[%emt 0:00:08]} 35. Ke3 {[%emt 0:00:14]} Nc7 {[%emt 0:02:36]} 36. Nd2 {[%emt 0:01:04]} Ke6 {[%emt 0:01:03]} 37. Ne4 {[%emt 0:01:39]} h6 {[%emt 0:00:33]} 38. g4 {[%emt 0:01:08]} Ke7 {[%emt 0:03:13]} 39. Ng3 {[%emt 0:00:53]} Bc8 {[%emt 0:02:12]} 40. Ke4 {[%emt 0:01:15]} Kf6 {[%emt 0:04:19]} 41. Nb1 {[%emt 0:04:07]} Bb7+ {[%emt 0:04:37]} 42. Ke3 {[%emt 0:00:32]} Ne8 {[%emt 0:01:54]} 43. Nd2 {[%emt 0:08:48]} Ke6 {[%emt 0:05:02]} 44. Nf5 {[%emt 0:03:59]} h5 {[%emt 0:00:50]} 45. Ne4 {[%emt 0:00:52]} Bxe4 {[%emt 0:04:03]} 46. Kxe4 {[%emt 0:00:07]} Nf6+ {[%emt 0:00:22]} 47. Ke3 {[%emt 0:01:13]} hxg4 {[%emt 0:00:09]} 48. Nh6 {[%emt 0:02:12]} gxf3 {[%emt 0:00:37]} 49. Kxf3 {[%emt 0:00:10]} Ne8 {[%emt 0:01:20]} 50. h4 {[%emt 0:02:28]} f5 {[%emt 0:01:38]} 51. Ke3 {[%emt 0:01:02]} Nd6 {[%emt 0:01:51]} 52. Kd3 {[%emt 0:00:44]} Kf6 {[%emt 0:04:01]} 53. Ng8+ {[%emt 0:00:53]} Kf7 {[%emt 0:00:16]} 54. Nh6+ {[%emt 0:00:22]} Kg6 {[%emt 0:00:12]} 55. Ng8 {[%emt 0:00:41]} Nc8 {[%emt 0:00:08]} 0-1